fUSD/lending_fUSD_20240624
["ID","MTS","AMOUNT","RATE_DAILY","PERIOD"]
[330262279,1719214291876,-500.0,0.00020547,4]
[330262280,1719214291886,-500.0,0.00020547,4]
[330262281,1719214291896,-500.0,0.00020547,4]
[330262282,1719214291906,-500.0,0.00020547,4]
[330262283,1719214291916,-500.0,0.00020547,4]
[330262284,1719214291926,-500.0,0.00020547,4]
[330262285,1719214291936,-500.0,0.00020547,4]
[330262286,1719214291946,-500.0,0.00020547,4]
[330262287,1719214291956,-299.31,0.00020547,4]
[330262288,1719214291965,-500.0,0.00020547,4]
[330262289,1719214291975,-500.0,0.00020547,4]
[330262290,1719214291986,-500.0,0.00020547,4]
[330262291,1719214291996,-500.0,0.00020547,4]
[330262292,1719214292005,-659.59,0.00020547,4]
[330262293,1719214292015,-526.65395101,0.00020547,4]
[330262294,1719214292025,-500.0,0.00020547,4]
[330262295,1719214292034,-500.0,0.00020547,4]
[330262296,1719214292048,-500.0,0.00020547,4]
[330262297,1719214292058,-500.0,0.00020547,4]
[330262298,1719214292068,-500.0,0.00020547,4]
[330262299,1719214292079,-500.0,0.00020547,4]
[330262300,1719214292088,-500.0,0.00020547,4]
[330262301,1719214292098,-500.0,0.00020547,4]
[330262302,1719214292108,-500.0,0.00020547,4]
[330262303,1719214292118,-500.0,0.00020547,4]
[330262304,1719214292127,-500.0,0.00020547,4]
[330262305,1719214292137,-500.0,0.00020547,4]
[330262306,1719214292147,-500.0,0.00020547,4]
[330262307,1719214292157,-500.0,0.00020547,4]
[330262308,1719214292167,-500.0,0.00020547,4]
[330262309,1719214292176,-500.0,0.00020547,4]
[330262310,1719214292186,-500.0,0.00020547,4]
[330262311,1719214292196,-500.0,0.00020547,4]
[330262312,1719214292206,-500.0,0.00020547,4]
[330262313,1719214292215,-500.0,0.00020547,4]
[330262314,1719214292225,-500.0,0.00020547,4]
[330262315,1719214292234,-295.46,0.00020547,4]
[330262316,1719214292244,-500.0,0.00020547,4]
[330262317,1719214292254,-500.0,0.00020547,4]
[330262318,1719214292263,-623.89,0.00020547,4]
[330262319,1719214292274,-500.0,0.00020547,4]
[330262320,1719214292283,-500.0,0.00020547,4]
[330262321,1719214292297,-500.0,0.00020547,4]
[330262322,1719214292307,-500.0,0.00020547,4]
[330262323,1719214292316,-500.0,0.00020547,4]
[330262324,1719214292326,-500.0,0.00020547,4]
[330262325,1719214292336,-500.0,0.00020547,4]
[330262326,1719214292346,-500.0,0.00020547,4]
[330262327,1719214292356,-500.0,0.00020547,4]
[330262328,1719214292365,-325.51,0.00020547,4]
[330262329,1719214292375,-500.0,0.00020547,4]
[330262330,1719214292385,-500.0,0.00020547,4]
[330262331,1719214292395,-500.0,0.00020547,4]
[330262332,1719214292405,-500.0,0.00020547,4]
[330262333,1719214292415,-536.92,0.00020547,4]
[330262334,1719214292425,-500.0,0.00020547,4]
[330262335,1719214292435,-500.0,0.00020547,4]
[330262336,1719214292444,-500.0,0.00020547,4]
[330262337,1719214292453,-500.0,0.00020547,4]
[330262338,1719214292463,-445.22,0.00020547,4]
[330262339,1719214292473,-500.0,0.00020547,4]
[330262340,1719214292482,-500.0,0.00020547,4]
[330262341,1719214292492,-500.0,0.00020547,4]
[330262342,1719214292501,-500.0,0.00020547,4]
[330262343,1719214292511,-500.0,0.00020547,4]
[330262344,1719214292520,-500.0,0.00020547,4]
[330262345,1719214292530,-500.0,0.00020547,4]
[330262346,1719214292543,-500.0,0.00020547,4]
[330262347,1719214292552,-500.0,0.00020547,4]
[330262348,1719214292561,-354.6,0.00020547,4]
[330262349,1719214292570,-150.0,0.00020547,4]
[330262350,1719214292579,-500.0,0.00020547,4]
[330262351,1719214292590,-500.0,0.00020547,4]
[330262352,1719214292600,-255.3,0.00020547,4]
[330262353,1719214292610,-393.48,0.00020547,4]
[330262354,1719214292622,-500.0,0.00020547,4]
[330262355,1719214292631,-500.0,0.00020547,4]
[330262356,1719214292641,-500.0,0.00020547,4]
[330262357,1719214292650,-500.0,0.00020547,4]
[330262358,1719214292660,-152.23,0.00020547,4]
[330262359,1719214292669,-500.0,0.00020547,4]
[330262360,1719214292678,-500.0,0.00020547,4]
[330262361,1719214292688,-177.32,0.00020547,4]
[330262362,1719214292699,-500.0,0.00020547,4]
[330262363,1719214292709,-500.0,0.00020547,4]
[330262364,1719214292719,-500.0,0.00020547,4]
[330262365,1719214292728,-550.36,0.00020547,4]
[330262366,1719214292737,-500.0,0.00020547,4]
[330262367,1719214292747,-607.68,0.00020547,4]
[330262368,1719214292757,-500.0,0.00020547,4]
[330262369,1719214292766,-500.0,0.00020547,4]
[330262370,1719214292775,-500.0,0.00020547,4]
[330262371,1719214292785,-500.0,0.00020547,4]
[330262372,1719214292868,-855.7,0.00020547,4]
[330262373,1719214292877,-500.0,0.00020547,4]
[330262374,1719214292887,-500.0,0.00020547,4]
[330262375,1719214292896,-500.0,0.00020547,4]
[330262376,1719214292905,-500.0,0.00020547,4]
[330262377,1719214292914,-500.0,0.00020547,4]
[330262378,1719214292923,-682.1,0.00020547,4]
[330262379,1719214292934,-500.0,0.00020547,4]
[330262380,1719214292943,-577.81,0.00020547,4]
[330262381,1719214292952,-500.0,0.00020547,4]
[330262382,1719214292961,-500.0,0.00020547,4]
[330262383,1719214292970,-500.0,0.00020547,4]
[330262384,1719214292980,-937.44,0.00020547,4]
[330262385,1719214292989,-500.0,0.00020547,4]
[330262386,1719214292999,-500.0,0.00020547,4]
[330262387,1719214293008,-500.0,0.00020547,4]
[330262388,1719214293017,-151.0,0.00020547,2]
[330262389,1719214293026,-645.12,0.00020547,4]
[330262390,1719214293035,-768.8,0.00020547,4]
[330262391,1719214293046,-500.0,0.00020547,4]
[330262392,1719214293055,-500.0,0.00020547,4]
[330262393,1719214293064,-500.0,0.00020547,4]
[330262394,1719214293073,-2094.36,0.00020547,4]
[330262395,1719214293082,-577.82,0.00020547,4]
[330262396,1719214293091,-500.0,0.00020547,4]
[330262397,1719214293100,-500.0,0.00020547,4]
[330262398,1719214293109,-565.31,0.00020547,4]
[330262399,1719214293119,-500.0,0.00020547,4]
[330262400,1719214293128,-6356.44,0.00020547,4]
[330262401,1719214293137,-500.0,0.00020547,4]
[330262402,1719214293146,-500.0,0.00020547,4]
[330262403,1719214293155,-500.0,0.00020547,4]
[330262404,1719214293166,-4647.89,0.00020547,4]
[330262405,1719214293175,-3141.04,0.00020547,4]
[330262406,1719214293184,-500.0,0.00020547,4]
[330262407,1719214293194,-3586.73,0.00020547,4]
[330262408,1719214293203,-6185.28,0.00020547,4]
[330262409,1719214293212,-683.5,0.00020547,4]
[330262410,1719214293221,-2892.33,0.00020547,4]
[330262411,1719214293231,-2282.5,0.00020547,4]
[330262412,1719214293240,-500.0,0.00020547,4]
[330262413,1719214293249,-650.76,0.00020547,4]
[330262414,1719214293259,-51483.53,0.00020547,4]
[330262415,1719214293268,-500.0,0.00020547,4]
[330262416,1719214293278,-500.0,0.00020547,4]
[330262417,1719214293288,-500.0,0.00020547,4]
[330262418,1719214293298,-34800.51,0.00020547,4]
[330262419,1719214293307,-6749.81,0.00020547,4]
[330262420,1719214293317,-4567.01,0.00020547,4]
[330262421,1719214293326,-5105.2,0.00020547,4]
[330262422,1719214293335,-500.0,0.00020547,4]
[330262423,1719214293344,-644.74,0.00020547,4]
[330262424,1719214293354,-500.0,0.00020547,4]
[330262425,1719214293363,-510.85,0.00020547,4]
[330262426,1719214293372,-1219.98,0.00020547,4]
[330262427,1719214293381,-500.0,0.00020547,4]
[330262428,1719214293390,-520.05827734,0.00020547,4]
[330262429,1719214293399,-1000.0,0.00020547,4]
[330262430,1719214293409,-907.22,0.00020547,4]
[330262431,1719214293418,-2994.74,0.00020547,4]
[330262432,1719214293427,-500.0,0.00020547,4]
[330262433,1719214293436,-500.0,0.00020547,4]
[330262434,1719214293446,-500.0,0.00020547,4]
[330262435,1719214293455,-500.0,0.00020547,4]
[330262436,1719214293465,-3411.07,0.00020547,4]
[330262437,1719214293474,-500.0,0.00020547,4]
[330262438,1719214293483,-500.0,0.00020547,4]
[330262439,1719214293492,-1945.6,0.00020547,4]
[330262440,1719214293502,-500.0,0.00020547,4]
[330262441,1719214293512,-500.0,0.00020547,4]
[330262442,1719214293521,-4149.12,0.00020547,4]
[330262443,1719214293531,-500.0,0.00020547,4]
[330262444,1719214293541,-1616.06,0.00020547,4]
[330262445,1719214293550,-571.69,0.00020547,4]
[330262446,1719214293560,-887.92,0.00020547,4]
[330262447,1719214293570,-500.0,0.00020547,4]
[330262448,1719214293579,-229.264516,0.00020547,2]
[330262449,1719214293589,-4933.56,0.00020547,4]
[330262450,1719214293598,-2530.75,0.00020547,4]
[330262451,1719214293610,-2643.82,0.00020547,4]
[330262452,1719214293620,-229.264513,0.00020547,2]
[330262453,1719214293629,-500.0,0.00020547,4]
[330262454,1719214293639,-547.62,0.00020547,4]
[330262455,1719214293648,-500.0,0.00020547,4]
[330262456,1719214293659,-700.46,0.00020547,4]
[330262457,1719214293668,-500.0,0.00020547,4]
[330262458,1719214293677,-2119.33,0.00020547,4]
[330262459,1719214293687,-6552.44,0.00020547,4]
[330262460,1719214293698,-807.64,0.00020547,4]
[330262461,1719214293707,-1255.88,0.00020547,4]
[330262462,1719214293716,-5199.55,0.00020547,4]
[330262463,1719214293725,-500.0,0.00020547,4]
[330262464,1719214293735,-199.67,0.00020547,4]
[330262465,1719214293744,-5313.84,0.00020547,4]
[330262466,1719214293752,-10226.28,0.00020547,4]
[330262467,1719214293761,-9675.59,0.00020547,4]
[330262468,1719214293771,-1578.26,0.00020547,4]
[330262469,1719214293779,-500.0,0.00020547,4]
[330262470,1719214293790,-513.05198638,0.00020547,4]
[330262471,1719214293799,-2304.39,0.00020547,4]
[330262472,1719214293808,-1515.67,0.00020547,4]
[330262473,1719214293818,-500.0,0.00020547,4]
[330262474,1719214293827,-326.0,0.00020547,4]
[330262475,1719214293837,-500.0,0.00020547,4]
[330262476,1719214293846,-860.22,0.00020547,4]
[330262477,1719214293856,-1413.93,0.00020547,4]
[330262478,1719214293865,-2577.54,0.00020547,4]
[330262479,1719214293875,-500.0,0.00020547,4]
[330262480,1719214293884,-500.0,0.00020547,4]
[330262481,1719214293893,-2480.87,0.00020547,4]
[330262482,1719214293902,-3485.47,0.00020547,4]
[330262483,1719214293911,-1675.26,0.00020547,4]
[330262484,1719214293921,-500.0,0.00020547,4]
[330262485,1719214293930,-6936.84,0.00020547,4]
[330262486,1719214293939,-1833.59,0.00020547,4]
[330262487,1719214293948,-500.0,0.00020547,4]
[330262488,1719214293957,-500.0,0.00020547,4]
[330262489,1719214293966,-978.19,0.00020547,4]
[330262490,1719214293975,-906.01,0.00020547,4]
[330262491,1719214293984,-500.0,0.00020547,4]
[330262492,1719214293995,-500.0,0.00020547,4]
[330262493,1719214294004,-1148.69,0.00020547,4]
[330262494,1719214294013,-1282.27,0.00020547,4]
[330262495,1719214294023,-5805.71,0.00020547,4]
[330262496,1719214294032,-3390.41,0.00020547,4]
[330262497,1719214294042,-500.0,0.00020547,4]
[330262498,1719214294051,-500.0,0.00020547,4]
[330262499,1719214294061,-4960.34,0.00020547,4]
[330262500,1719214294071,-3724.94,0.00020547,4]
[330262501,1719214294080,-631.73,0.00020547,4]
[330262502,1719214294089,-2618.38,0.00020547,4]
[330262503,1719214294099,-500.0,0.00020547,4]
[330262504,1719214294108,-3549.79,0.00020547,4]
[330262505,1719214294117,-6686.69,0.00020547,4]
[330262506,1719214294126,-500.0,0.00020547,4]
[330262507,1719214294135,-683.84,0.00020547,4]
[330262508,1719214294144,-3505.82,0.00020547,4]
[330262509,1719214294154,-4601.22,0.00020547,4]
[330262510,1719214294163,-500.0,0.00020547,4]
[330262511,1719214294172,-3007.89,0.00020547,4]
[330262512,1719214294181,-500.0,0.00020547,4]
[330262513,1719214294191,-5517.01,0.00020547,4]
[330262514,1719214294200,-3237.39,0.00020547,4]
[330262515,1719214294210,-500.0,0.00020547,4]
[330262516,1719214294220,-151.0,0.00020547,2]
[330262517,1719214294229,-5108.38,0.00020547,4]
[330262518,1719214294239,-2162.86,0.00020547,4]
[330262519,1719214294248,-500.0,0.00020547,4]
[330262520,1719214294257,-776.23,0.00020547,4]
[330262521,1719214294266,-1479.77,0.00020547,4]
[330262522,1719214294276,-528.31,0.00020547,4]
[330262523,1719214294286,-471.42,0.00020547,4]
[330262524,1719214294297,-822.04,0.00020547,4]
[330262525,1719214294306,-3213.19,0.00020547,4]
[330262526,1719214294315,-500.0,0.00020547,4]
[330262527,1719214294325,-1437.16,0.00020547,4]
[330262528,1719214294335,-500.0,0.00020547,4]
[330262529,1719214294344,-500.0,0.00020547,4]
[330262530,1719214294354,-500.0,0.00020547,4]
[330262531,1719214294363,-8580.64,0.00020547,4]
[330262532,1719214294373,-4077.0,0.00020547,4]
[330262533,1719214294382,-500.0,0.00020547,4]
[330262534,1719214294391,-773.12,0.00020547,4]
[330262535,1719214294401,-522.29,0.00020547,4]
[330262536,1719214294410,-500.0,0.00020547,4]
[330262537,1719214294420,-1347.66,0.00020547,4]
[330262538,1719214294429,-3845.4,0.00020547,4]
[330262539,1719214294438,-500.0,0.00020547,4]
[330262540,1719214294448,-599.26,0.00020547,4]
[330262541,1719214294457,-520.44,0.00020547,4]
[330262542,1719214294467,-151.0,0.00020547,2]
[330262543,1719214294476,-215.285216,0.00020547,2]
[330262544,1719214294486,-653.28,0.00020547,4]
[330262545,1719214294495,-500.0,0.00020547,4]
[330262546,1719214294505,-601.18,0.00020547,4]
[330262547,1719214294515,-215.285216,0.00020547,2]
[330262548,1719214294524,-4423.02,0.00020547,4]
[330262549,1719214294534,-551.36387281,0.00020547,4]
[330262550,1719214294544,-1302.14,0.00020547,4]
[330262551,1719214294553,-1510.55,0.00020547,4]
[330262552,1719214294562,-455.58,0.00020547,4]
[330262553,1719214294572,-4691.32,0.00020547,4]
[330262554,1719214294582,-1862.57,0.00020547,4]
[330262555,1719214294591,-500.0,0.00020547,4]
[330262556,1719214294601,-500.0,0.00020547,4]
[330262557,1719214294611,-500.0,0.00020547,4]
[330262558,1719214294624,-500.0,0.00020547,4]
[330262559,1719214294634,-3581.0,0.00020547,4]
[330262560,1719214294643,-4540.36,0.00020547,4]
[330262561,1719214294653,-500.0,0.00020547,4]
[330262562,1719214294663,-3105.44,0.00020547,4]
[330262563,1719214294673,-647.91,0.00020547,4]
[330262564,1719214294682,-775.75,0.00020547,4]
[330262565,1719214294692,-500.0,0.00020547,4]
[330262566,1719214294703,-551.02,0.00020547,4]
[330262567,1719214294713,-500.0,0.00020547,4]
[330262568,1719214294723,-4542.28,0.00020547,4]
[330262569,1719214294732,-1450.78,0.00020547,4]
[330262570,1719214294742,-500.0,0.00020547,4]
[330262571,1719214294751,-2168.61,0.00020547,4]
[330262572,1719214294760,-500.0,0.00020547,4]
[330262573,1719214294770,-500.0,0.00020547,4]
[330262574,1719214294779,-2528.62,0.00020547,4]
[330262575,1719214294788,-500.0,0.00020547,4]
[330262576,1719214294798,-500.0,0.00020547,4]
[330262577,1719214294807,-500.0,0.00020547,4]
[330262578,1719214294816,-500.0,0.00020547,2]
[330262579,1719214294826,-500.0,0.00020547,4]
[330262580,1719214294837,-3511.4,0.00020547,4]
[330262581,1719214294847,-500.0,0.00020547,4]
[330262582,1719214294856,-500.0,0.00020547,4]
[330262583,1719214294865,-663.3,0.00020547,4]
[330262584,1719214294875,-500.0,0.00020547,4]
[330262585,1719214294884,-500.0,0.00020547,4]
[330262586,1719214294894,-5536.21,0.00020547,4]
[330262587,1719214294904,-500.0,0.00020547,4]
[330262588,1719214294913,-2051.83,0.00020547,4]
[330262589,1719214294923,-3788.32,0.00020547,4]
[330262590,1719214294932,-500.0,0.00020547,4]
[330262591,1719214294941,-500.0,0.00020547,4]
[330262592,1719214294950,-500.0,0.00020547,4]
[330262593,1719214294960,-500.0,0.00020547,4]
[330262594,1719214294970,-738.9,0.00020547,4]
[330262595,1719214294980,-635.92,0.00020547,4]
[330262596,1719214294989,-500.0,0.00020547,4]
[330262597,1719214294999,-2983.25,0.00020547,4]
[330262598,1719214295008,-946.91,0.00020547,4]
[330262599,1719214295018,-500.0,0.00020547,4]
[330262600,1719214295028,-3622.73,0.00020547,4]
[330262601,1719214295037,-622.21690927,0.00020566,2]
[330262602,1719214295048,-152.0,0.00020567,3]
[330262603,1719214295057,-183.16,0.00020583,2]
[330262604,1719214295067,-166.73,0.00020586,2]
[330262605,1719214295076,-164.31,0.00020596,2]
[330262606,1719214295085,-412.61839352,0.00020599,2]
[330262607,1719214295095,-289.85507,0.000206,2]
[330262608,1719214295104,-2198.85723835,0.00020608,2]
[330262609,1719214295113,-376.398091,0.00020613,2]
[330262610,1719214295122,-375.715617,0.00020613,2]
[330262611,1719214295132,-3789.55797518,0.00020624,2]
[330262612,1719214295141,-2191.05603,0.0002063,2]
[330262613,1719214295150,-822.0,0.00020674,2]
[330262614,1719214295159,-1817.03,0.00020674,2]
[330262615,1719214295169,-9682.62719541,0.00020693,2]
[330262616,1719214295179,-209.96997035,0.00020695,2]
[330262617,1719214295188,-318.18194755,0.00020721,2]
[330262618,1719214295197,-516.42631496,0.00020721,2]
[330262619,1719214295207,-2921.43282356,0.00020796,2]
[330262620,1719214295216,-2828.45274486,0.00020799,2]
[330262621,1719214295225,-332751.088148,0.000208,2]
[330262622,1719214295235,-215.285216,0.000208,2]
[330262623,1719214295244,-215.285208,0.000208,2]
[330262624,1719214295254,-259.70410429,0.00020812,2]
[330262625,1719214295264,-1000.0,0.00020812,2]
[330262626,1719214295273,-3498.52048127,0.00020816,2]
[330262627,1719214295283,-500.0,0.00020821,4]
[330262628,1719214295292,-544.94,0.00020821,4]
[330262629,1719214295301,-428.31,0.00020821,4]
[330262630,1719214295310,-500.0,0.00020821,4]
[330262631,1719214295320,-500.0,0.00020821,4]
[330262632,1719214295329,-500.0,0.00020821,4]
[330262633,1719214295338,-500.0,0.00020821,4]
[330262634,1719214295348,-500.0,0.00020821,4]
[330262635,1719214295357,-500.0,0.00020821,4]
[330262636,1719214295366,-291.46,0.00020821,4]
[330262637,1719214295375,-500.0,0.00020821,4]
[330262638,1719214295384,-500.0,0.00020821,4]
[330262639,1719214295394,-500.0,0.00020821,4]
[330262640,1719214295403,-500.0,0.00020821,4]
[330262641,1719214295412,-500.0,0.00020821,4]
[330262642,1719214295421,-500.0,0.00020821,4]
[330262643,1719214295431,-500.0,0.00020821,4]
[330262644,1719214295440,-500.0,0.00020821,4]
[330262645,1719214295449,-505.52,0.00020821,4]
[330262646,1719214295458,-500.0,0.00020821,4]
[330262647,1719214295467,-500.0,0.00020821,4]
[330262648,1719214295476,-500.0,0.00020821,4]
[330262649,1719214295485,-500.0,0.00020821,4]
[330262650,1719214295494,-299.04917614,0.00020821,4]
[330262651,1719214295503,-536.76,0.00020821,4]
[330262652,1719214295512,-597.09,0.00020821,4]
[330262653,1719214295521,-500.0,0.00020821,4]
[330262654,1719214295530,-500.0,0.00020821,4]
[330262655,1719214295539,-500.0,0.00020821,4]
[330262656,1719214295550,-500.0,0.00020821,4]
[330262657,1719214295559,-500.0,0.00020821,4]
[330262658,1719214295568,-500.0,0.00020821,4]
[330262659,1719214295578,-500.0,0.00020821,4]
[330262660,1719214295586,-500.0,0.00020821,2]
[330262661,1719214295596,-638.22,0.00020821,4]
[330262662,1719214295605,-500.0,0.00020821,4]
[330262663,1719214295619,-500.0,0.00020821,4]
[330262664,1719214295628,-631.16,0.00020821,4]
[330262665,1719214295637,-500.0,0.00020821,4]
[330262666,1719214295647,-500.0,0.00020821,4]
[330262667,1719214295657,-500.0,0.00020821,4]
[330262668,1719214295667,-500.0,0.00020821,4]
[330262669,1719214295677,-500.0,0.00020821,4]
[330262670,1719214295688,-500.0,0.00020821,4]
[330262671,1719214295697,-500.0,0.00020821,4]
[330262672,1719214295707,-500.0,0.00020821,4]
[330262673,1719214295716,-500.0,0.00020821,4]
[330262674,1719214295725,-500.0,0.00020821,4]
[330262675,1719214295735,-500.0,0.00020821,4]
[330262676,1719214295743,-309.12,0.00020821,4]
[330262677,1719214295752,-500.0,0.00020821,4]
[330262678,1719214295762,-500.0,0.00020821,4]
[330262679,1719214295771,-500.0,0.00020821,4]
[330262680,1719214295780,-500.0,0.00020821,4]
[330262681,1719214295790,-500.0,0.00020821,4]
[330262682,1719214295803,-500.0,0.00020821,4]
[330262683,1719214295814,-500.0,0.00020821,4]
[330262684,1719214295823,-500.0,0.00020821,4]
[330262685,1719214295833,-500.0,0.00020821,4]
[330262686,1719214295844,-500.0,0.00020821,4]
[330262687,1719214295854,-454.11,0.00020821,4]
[330262688,1719214295863,-500.0,0.00020821,4]
[330262689,1719214295874,-500.0,0.00020821,4]
[330262690,1719214295883,-500.0,0.00020821,4]
[330262691,1719214295893,-500.0,0.00020821,4]
[330262692,1719214295903,-500.0,0.00020821,4]
[330262693,1719214295914,-500.0,0.00020821,4]
[330262694,1719214295924,-500.0,0.00020821,4]
[330262695,1719214295934,-500.0,0.00020821,4]
[330262696,1719214295943,-500.0,0.00020821,4]
[330262697,1719214295953,-500.0,0.00020821,4]
[330262698,1719214295962,-500.0,0.00020821,4]
[330262699,1719214295972,-500.0,0.00020821,4]
[330262700,1719214295981,-608.86,0.00020821,4]
[330262701,1719214295991,-555.7,0.00020821,4]
[330262702,1719214296000,-500.0,0.00020821,4]
[330262703,1719214296010,-500.0,0.00020821,4]
[330262704,1719214296020,-500.0,0.00020821,4]
[330262705,1719214296030,-247.85,0.00020821,4]
[330262706,1719214296039,-500.0,0.00020821,4]
[330262707,1719214296051,-500.0,0.00020821,4]
[330262708,1719214296061,-500.0,0.00020821,4]
[330262709,1719214296071,-530.95,0.00020821,4]
[330262710,1719214296081,-500.0,0.00020821,4]
[330262711,1719214296091,-500.0,0.00020821,4]
[330262712,1719214296100,-500.0,0.00020821,4]
[330262713,1719214296110,-500.0,0.00020821,4]
[330262714,1719214296119,-500.0,0.00020821,4]
[330262715,1719214296129,-500.0,0.00020821,4]
[330262716,1719214296138,-500.0,0.00020821,4]
[330262717,1719214296147,-384.98,0.00020821,4]
[330262718,1719214296157,-500.0,0.00020821,4]
[330262719,1719214296167,-500.0,0.00020821,4]
[330262720,1719214296177,-500.0,0.00020821,4]
[330262721,1719214296187,-500.0,0.00020821,4]
[330262722,1719214296196,-500.0,0.00020821,4]
[330262723,1719214296207,-500.0,0.00020821,4]
[330262724,1719214296216,-500.0,0.00020821,4]
[330262725,1719214296226,-500.0,0.00020821,4]
[330262726,1719214296236,-500.0,0.00020821,4]
[330262727,1719214296245,-500.0,0.00020821,4]
[330262728,1719214296255,-500.0,0.00020821,4]
[330262729,1719214296265,-500.0,0.00020821,4]
[330262730,1719214296275,-659.59,0.00020821,4]
[330262731,1719214296285,-500.0,0.00020821,4]
[330262732,1719214296296,-500.0,0.00020821,4]
[330262733,1719214296305,-500.0,0.00020821,4]
[330262734,1719214296315,-500.0,0.00020821,4]
[330262735,1719214296325,-500.0,0.00020821,4]
[330262736,1719214296335,-500.0,0.00020821,4]
[330262737,1719214296345,-500.0,0.00020821,4]
[330262738,1719214296354,-500.0,0.00020821,4]
[330262739,1719214296365,-500.0,0.00020821,4]
[330262740,1719214296374,-500.0,0.00020821,4]
[330262741,1719214296384,-500.0,0.00020821,4]
[330262742,1719214296394,-500.0,0.00020821,4]
[330262743,1719214296404,-500.0,0.00020821,4]
[330262744,1719214296414,-500.0,0.00020821,4]
[330262745,1719214296424,-500.0,0.00020821,4]
[330262746,1719214296434,-500.0,0.00020821,4]
[330262747,1719214296444,-500.0,0.00020821,4]
[330262748,1719214296454,-500.0,0.00020821,4]
[330262749,1719214296463,-500.0,0.00020821,4]
[330262750,1719214296473,-500.0,0.00020821,4]
[330262751,1719214296483,-500.0,0.00020821,4]
[330262752,1719214296492,-500.0,0.00020821,4]
[330262753,1719214296502,-152.6,0.00020821,4]
[330262754,1719214296511,-331.23,0.00020821,4]
[330262755,1719214296521,-500.0,0.00020821,4]
[330262756,1719214296530,-500.0,0.00020821,4]
[330262757,1719214296540,-500.0,0.00020821,4]
[330262758,1719214296551,-500.0,0.00020821,4]
[330262759,1719214296562,-500.0,0.00020821,4]
[330262760,1719214296572,-500.0,0.00020821,4]
[330262761,1719214296582,-500.0,0.00020821,4]
[330262762,1719214296591,-198.36,0.00020821,4]
[330262763,1719214296601,-500.0,0.00020821,4]
[330262764,1719214296611,-512.69,0.00020821,4]
[330262765,1719214296626,-500.0,0.00020821,4]
[330262766,1719214296636,-500.0,0.00020821,4]
[330262767,1719214296646,-500.0,0.00020821,4]
[330262768,1719214296657,-500.0,0.00020821,4]
[330262769,1719214296666,-500.0,0.00020821,4]
[330262770,1719214296676,-461.54,0.00020821,4]
[330262771,1719214296685,-545.95,0.00020821,4]
[330262772,1719214296699,-500.0,0.00020821,4]
[330262773,1719214296709,-500.0,0.00020821,4]
[330262774,1719214296719,-500.0,0.00020821,4]
[330262775,1719214296729,-500.0,0.00020821,4]
[330262776,1719214296738,-545.33,0.00020821,4]
[330262777,1719214296748,-500.0,0.00020821,4]
[330262778,1719214296758,-500.0,0.00020821,4]